[Event "Late Titled Tuesday Blitz February 8 2022"]
[White "Zierk, Steven"]
[Black "Bortnyk, Olexandr"]
[WhiteFideId "2034255"]
[BlackFideId "14120828"]
[WhiteElo "2494"]
[BlackElo "2723"]
[Result "0-1"]
[Round "11"]
[TimeControl "180+1"]
[Date "2022.02.08"]
[WhiteClock "0:00:04"]
[BlackClock "0:01:16"]

1. e4 {[%clk 0:03:00]}  Nf6 {[%clk 0:02:57]} 2. e5 {[%clk 0:02:58]}  Nd5 {[%clk 0:02:57]} 3. d4 {[%clk 0:02:58]}  d6 {[%clk 0:02:57]} 4. Nf3 {[%clk 0:02:59]}  dxe5 {[%clk 0:02:58]} 5. Nxe5 {[%clk 0:03:00]}  c6 {[%clk 0:02:58]} 6. c4 {[%clk 0:02:59]}  Nb4 {[%clk 0:02:58]} 7. Be3 {[%clk 0:02:53]}  Bf5 {[%clk 0:02:58]} 8. Nd3 {[%clk 0:02:52]}  e5 {[%clk 0:02:55]} 9. Nxb4 {[%clk 0:02:49]}  Bxb4+ {[%clk 0:02:56]} 10. Nc3 {[%clk 0:02:50]}  exd4 {[%clk 0:02:52]} 11. Qxd4 {[%clk 0:02:50]}  Qxd4 {[%clk 0:02:49]} 12. Bxd4 {[%clk 0:02:51]}  O-O {[%clk 0:02:50]} 13. O-O-O {[%clk 0:02:43]}  Nd7 {[%clk 0:02:44]} 14. g4 {[%clk 0:02:35]}  Be6 {[%clk 0:02:27]} 15. f4 {[%clk 0:02:18]}  Bxg4 {[%clk 0:02:12]} 16. Rg1 {[%clk 0:02:16]}  h5 {[%clk 0:02:11]} 17. h3 {[%clk 0:02:14]}  c5 {[%clk 0:02:06]} 18. Bxg7 {[%clk 0:02:08]}  Bxd1 {[%clk 0:02:05]} 19. Nd5 {[%clk 0:01:49]}  Rfe8 {[%clk 0:01:51]} 20. Nxb4 {[%clk 0:00:54]}  Bg4 {[%clk 0:01:43]} 21. Bh6 {[%clk 0:00:44]}  cxb4 {[%clk 0:01:40]} 22. hxg4 {[%clk 0:00:41]}  hxg4 {[%clk 0:01:28]} 23. Bd3 {[%clk 0:00:28]}  Nf6 {[%clk 0:01:27]} 24. Rh1 {[%clk 0:00:15]}  Re3 {[%clk 0:01:24]} 25. Bf5 {[%clk 0:00:10]}  Rh3 {[%clk 0:01:23]} 26. Rxh3 {[%clk 0:00:10]}  gxh3 {[%clk 0:01:24]} 27. Bxh3 {[%clk 0:00:10]}  Re8 {[%clk 0:01:22]} 28. Bg2 {[%clk 0:00:09]}  b6 {[%clk 0:01:16]} 29. Kd2 {[%clk 0:00:05]}  Kh7 {[%clk 0:01:15]} 30. Bg5 {[%clk 0:00:04]}  Ne4+ {[%clk 0:01:16]} 0-1